bitfinex/quotes_SOLUSD_20220226
["timestamp","ask_amount","ask_price","bid_price","bid_amount"]
[1645867645498,109.7,91.089,91.01,16.4797]
[1645867645696,1.72651822,91.088,91.01,16.4797]
[1645867646103,115.0,91.087,90.98,70.7788]
[1645867646298,115.0,91.087,90.868,7.0]
[1645867646299,175.79,91.084,90.928,49.27636654]
[1645867646496,10.0,91.085,90.9,15.84]
[1645867646497,109.7,91.076,90.9,15.84]
[1645867646697,1.65397187,91.075,90.93,16.4942]
[1645867646896,109.7,91.059,90.888,48.4683]
[1645867647096,109.7,91.049,90.888,48.4683]
[1645867647298,109.7,91.047,90.884,79.2315]
[1645867647496,175.79,91.039,90.866,5.73559688]
[1645867647699,175.79,91.019,90.849,3.0227251]
[1645867647899,109.7,91.009,90.85,16.5069]
[1645867648095,109.7,90.999,90.85,16.5069]
[1645867648296,5.98818912,90.998,90.851,2.86292427]
[1645867648500,19.15892587,90.997,90.852,109.7]
[1645867648797,19.15892587,90.997,90.864,5.0]
[1645867648998,19.15892587,90.997,90.891,54.95265152]
[1645867649198,19.15892587,90.997,90.892,3.04592508]
[1645867649396,19.15892587,90.997,90.892,5.90884935]
[1645867649596,1.57298302,90.996,90.893,19.89949717]
[1645867649796,1.57298302,90.996,90.893,46.90515885]
[1645867649998,1.57298302,90.996,90.894,27.00566168]
[1645867650397,1.57298302,90.996,90.895,28.04566168]
[1645867650596,1.57298302,90.996,90.911,43.61746305]
[1645867652700,19.15892587,90.997,90.912,2.86292427]
[1645867653501,1.8365945,90.996,90.912,2.86292427]
[1645867654502,24.7231,90.999,90.92,16.4951]
[1645867654700,24.7231,90.999,90.921,0.25]
[1645867654900,24.7231,90.999,90.921,3.11292427]
[1645867655100,24.7231,90.999,90.922,2.86292427]
[1645867655300,18.04598962,91.002,90.923,0.25]
[1645867655699,18.04598962,91.002,90.924,2.86292427]
[1645867655900,18.04598962,91.002,90.925,58.52572199]
[1645867656402,18.04598962,91.002,90.926,2.86292427]
[1645867656601,18.04598962,91.002,90.93,16.4938]
[1645867659405,111.42241238,91.001,90.91,16.4968]
[1645867659610,1.49308607,91.0,90.91,16.4968]
[1645867660206,1.62441572,90.998,90.911,2.86292427]
[1645867660406,49.226,90.999,90.92,16.4944]
[1645867660606,18.04598962,91.002,90.921,3.10986398]
[1645867660804,4.397,91.039,90.921,5.97278825]
[1645867661005,15.84,91.06,90.922,2.86292427]
[1645867661305,1.6827311,91.058,90.923,0.25]
[1645867661506,4.396,91.057,90.923,0.25]
[1645867661706,109.7,91.055,90.925,51.8939505]
[1645867662006,109.7,91.053,90.926,3.11292427]
[1645867662204,109.7,91.049,90.926,3.11292427]
[1645867662404,1.35118192,91.048,90.927,2.86292427]
[1645867662605,109.7,91.046,90.95,16.4893]
[1645867662804,1.5976682,91.045,90.951,53.96226573]
[1645867663504,4.394,91.044,90.95,16.4893]
[1645867663909,15.84,91.04,90.93,16.4931]
[1645867664112,109.7,91.031,90.905,113.0]
[1645867664308,109.7,90.989,90.867,2.87815294]
[1645867664508,16.5,90.99,90.867,2.87815294]
[1645867664509,109.7,90.985,90.892,54.16525542]
[1645867664708,6.28937811,90.986,90.892,54.16525542]
[1645867664906,4.90808021,90.986,90.892,54.16525542]
[1645867665106,4.90808021,90.986,90.9,16.4995]
[1645867665707,4.90808021,90.986,90.901,0.25]
[1645867666106,4.90808021,90.986,90.893,0.25]
[1645867666711,16.4962,91.01,90.893,109.95]
[1645867666910,23.1371,91.019,90.92,16.496]
[1645867667108,1.35034401,91.017,90.986,1.0755436]
[1645867667711,20.40708678,91.016,90.986,1.0755436]
[1645867667912,1.62945313,91.015,90.986,1.0755436]
[1645867668112,20.40708678,91.016,90.986,1.0755436]
[1645867668709,1.52091645,91.015,90.986,1.0755436]
[1645867669915,20.40708678,91.016,90.986,1.0755436]
[1645867671316,1.78596943,91.015,90.986,1.0755436]
[1645867673517,20.40708678,91.016,90.986,1.0755436]
[1645867674118,1.6368317,91.015,90.92,15.84]
[1645867674318,1.6368317,91.015,90.921,0.25]
[1645867675116,15.70884629,91.014,90.922,4.397]
[1645867675334,15.70884629,91.014,90.94,16.4922]
[1645867675537,111.33484819,91.013,90.914,23.6121]
[1645867675735,1.3663246,91.012,90.914,23.6121]
[1645867675937,109.7,91.009,90.914,23.6121]
[1645867676136,111.12861376,91.009,90.914,23.6121]
[1645867676338,16.4997,90.99,90.904,45.17451352]
[1645867676539,157.5332,90.989,90.904,45.17451352]
[1645867676738,1.42794406,90.988,90.904,45.17451352]
[1645867677140,1.42794406,90.988,90.89,4.398]
[1645867677338,1.42794406,90.988,90.892,0.25]
[1645867677339,2.52698501,90.987,90.892,0.25]
[1645867677539,112.22698501,90.987,90.892,0.25]
[1645867677737,1.61818049,90.986,90.881,0.25]
[1645867677937,4.1451655,90.986,90.879,0.25]
[1645867678137,17.77854697,90.985,90.879,48.55551034]
[1645867678339,109.7,90.984,90.879,48.55551034]
[1645867678540,66.09,90.968,90.868,46.5245]
[1645867678745,66.09,90.966,90.85,74.7095]
[1645867678942,109.7,90.957,90.85,74.7095]
[1645867679142,1.8661534,90.956,90.85,74.7095]
[1645867679342,109.7,90.954,90.85,74.7095]
[1645867679543,109.7,90.952,90.851,48.21669339]
[1645867679743,109.7,90.95,90.851,48.21669339]
[1645867679949,4.4,90.949,90.851,48.21669339]
[1645867680144,15.25156196,90.919,90.851,48.21669339]
[1645867680343,111.25787784,90.918,90.851,48.21669339]
[1645867680550,1.55787784,90.918,90.851,48.21669339]
[1645867681143,16.5084,90.94,90.851,48.21669339]
[1645867681348,1.78557998,90.947,90.852,0.25]
[1645867681948,1.81392502,90.936,90.851,48.21669339]
[1645867682143,19.47081784,90.936,90.851,48.21669339]
[1645867682344,1.82022406,90.935,90.851,48.21669339]
[1645867683443,1.82022406,90.935,90.86,16.508]
[1645867685544,16.5094,90.93,90.86,16.508]
[1645867686147,17.65689282,90.936,90.86,16.508]
[1645867686548,17.65689282,90.936,90.87,16.505]
[1645867686747,17.65689282,90.936,90.871,50.92823121]
[1645867687148,1.65503496,90.953,90.871,50.92823121]
[1645867687348,1.58685407,90.962,90.872,0.25]
[1645867687550,1.55082197,90.962,90.872,0.25]
[1645867687751,1.47887219,90.962,90.88,16.5047]
[1645867687948,1.59094529,90.954,90.881,0.25]
[1645867688153,18.5456944,90.953,90.881,0.25]
[1645867688553,1.73640311,90.952,90.881,0.25]
[1645867688953,1.73640311,90.952,90.871,50.92823121]
[1645867689154,111.43640311,90.952,90.871,50.92823121]
[1645867689354,1.85141906,90.951,90.871,50.92823121]
[1645867690554,16.5059,90.95,90.871,50.92823121]
[1645867690754,1.74209908,90.949,90.871,50.92823121]
[1645867691253,18.5456944,90.953,90.871,50.92823121]
[1645867691456,1.86362158,90.952,90.871,50.92823121]
[1645867691757,18.5456944,90.953,90.871,50.92823121]
[1645867692154,24.9984,90.954,90.88,16.5048]
[1645867692355,24.9984,90.954,90.881,0.25]
[1645867692559,1.463573,90.977,90.881,0.25]
[1645867692755,6.95,90.99,90.881,6.07166458]
[1645867692956,6.95,90.99,90.882,4.398]
[1645867693157,6.95,90.99,90.883,2.64280248]
[1645867693354,6.95,90.99,90.884,109.7]
[1645867693555,6.95,90.99,90.886,109.7]
[1645867693755,6.95,90.99,90.9,15.84]
[1645867693959,6.95,90.99,90.92,16.4944]
[1645867694156,6.95,90.99,90.921,53.00941488]
[1645867695356,6.95,90.99,90.93,16.4947]
[1645867695555,6.95,90.99,90.931,0.25]
[1645867695757,6.95,90.99,90.922,3.11292427]
[1645867695954,6.95,90.99,90.923,2.86292427]
[1645867696158,6.95,90.99,90.924,114.347]
[1645867696359,1.7373577,91.077,90.925,3.08083928]
[1645867696557,1.7373577,91.077,90.926,116.95323762]
[1645867696765,24.93224547,91.071,90.94,15.84]
[1645867696964,1.360925,91.07,90.941,117.28213236]
[1645867697159,24.12071647,91.069,90.943,109.7]
[1645867697356,111.53396823,91.068,90.944,4.644]
[1645867697556,1.85484888,91.067,90.944,7.50692427]
[1645867697758,26.78709435,91.067,90.944,3.11292427]
[1645867697956,26.78709435,91.067,90.945,2.86292427]
[1645867697957,1.4751757,91.066,90.945,2.86292427]
[1645867698158,109.7,91.059,90.98,16.4867]
[1645867698357,109.7,91.059,90.96,54.9504]
[1645867698358,25.82171208,91.058,90.978,53.44584553]
[1645867698558,1.6997609,91.057,90.978,53.44584553]
[1645867699562,1.6997609,91.057,90.96,54.9504]
[1645867699563,109.7,91.049,90.97,16.4881]
[1645867699762,1.77723046,91.048,90.97,16.4881]
[1645867700662,5.56918538,91.047,90.971,50.23236484]
[1645867701466,5.56918538,91.047,90.98,16.4866]
[1645867701692,5.56918538,91.047,90.98,23.2066]
[1645867703091,5.56918538,91.047,90.99,16.4848]
[1645867704701,24.0662,91.058,90.99,16.4848]
[1645867704895,1.72103585,91.072,90.989,45.70242117]
[1645867705095,1.72704916,91.099,90.991,2.86292427]
[1645867705294,1.72704916,91.099,90.992,0.25]
[1645867705503,23.5285,91.109,90.992,0.25]
[1645867705795,23.66351121,91.108,90.994,2.3955747]
[1645867705994,23.66351121,91.108,90.995,0.25]
[1645867706194,23.66351121,91.108,90.996,109.7]
[1645867706393,23.66351121,91.108,91.011,109.7]
[1645867706594,23.66351121,91.108,91.04,16.4757]
[1645867706796,23.66351121,91.108,91.041,49.76370449]
[1645867707797,23.5285,91.109,91.041,49.76370449]
[1645867708002,1.54680667,91.139,91.05,16.4737]
[1645867708202,72.262,91.144,91.05,16.4737]
[1645867708497,72.262,91.144,91.051,0.25]
[1645867708697,72.262,91.144,91.051,3.11292427]
[1645867708896,16.4724,91.14,91.05,16.4724]
[1645867709098,109.7,91.139,91.05,16.4724]
[1645867709300,1.39800015,91.138,91.05,16.4724]
[1645867709498,4.391,91.137,91.05,16.4724]
[1645867709697,1.39800015,91.138,91.05,16.4724]
[1645867710497,16.475,91.13,91.05,16.4724]
[1645867710701,7.79588758,91.129,91.05,16.4724]
[1645867710899,117.49588758,91.129,91.05,16.4724]
[1645867711098,1.4390932,91.128,91.05,16.4724]
[1645867711299,1.4390932,91.128,91.041,49.76370449]
[1645867711902,2.5140773,91.127,91.041,49.76370449]
[1645867712098,1.4390932,91.128,91.041,49.76370449]
[1645867712300,1.62413832,91.119,91.05,16.4737]
[1645867712501,6.40360304,91.129,91.05,16.4737]
[1645867713801,1.45379422,91.143,91.051,3.11292427]
[1645867714000,4.39,91.179,91.07,16.4673]
[1645867714203,1.66689991,91.175,91.071,0.25]
[1645867714402,1.66689991,91.175,91.071,3.11292427]
[1645867714604,20.19004247,91.174,91.072,49.02246954]
[1645867714803,1.76032496,91.173,91.073,0.25]
[1645867715008,1.76032496,91.173,91.073,3.11292427]
[1645867715404,1.76032496,91.173,91.074,2.86292427]
[1645867715604,1.76032496,91.173,91.101,46.45029124]
[1645867717311,109.7,91.173,91.101,46.45029124]
[1645867717510,4.15834223,91.172,91.09,16.4668]
[1645867717913,7.63040734,91.171,91.074,2.86292427]
[1645867718110,109.7,91.159,91.05,68.0975]
[1645867718313,1.50367499,91.157,91.052,0.25]
[1645867718510,109.7,91.155,91.052,44.09825758]
[1645867718711,1.60646135,91.154,91.07,16.4693]
[1645867718912,1.60646135,91.154,91.071,46.12566606]
[1645867719510,16.4706,91.15,91.071,46.12566606]
[1645867719714,1.67823487,91.149,91.071,46.12566606]
[1645867720112,8.08694748,91.156,91.071,46.12566606]
[1645867722111,8.08694748,91.156,91.08,16.4684]
[1645867731147,22.5777,91.178,91.09,13.2]
[1645867731347,1.73873821,91.192,91.091,4.639]
[1645867731546,1.73873821,91.192,91.091,7.50192427]
[1645867731746,1.73873821,91.192,91.092,2.86292427]
[1645867731945,22.92457203,91.191,91.094,44.28929356]
[1645867732145,1.77616286,91.19,91.095,4.638]
[1645867732345,1.77616286,91.19,91.095,7.50092427]
[1645867732544,1.77616286,91.19,91.131,60.44245414]
[1645867733144,22.92457203,91.191,91.131,60.44245414]
[1645867734546,22.92457203,91.191,91.14,16.4575]
[1645867734748,1.37911723,91.209,91.14,16.4575]
[1645867735646,23.55100506,91.208,91.14,16.4575]
[1645867735847,1.72477142,91.207,91.14,16.4575]
[1645867736446,23.55100506,91.208,91.131,60.44245414]
[1645867736649,23.55100506,91.208,91.15,16.4557]
[1645867736849,23.55100506,91.208,91.151,57.63055591]
[1645867737248,24.8039,91.212,91.151,57.63055591]
[1645867738249,26.28102906,91.211,91.151,57.63055591]
[1645867738450,26.28102906,91.211,91.16,16.4537]
[1645867740350,26.28102906,91.211,91.151,57.63055591]
[1645867740553,1.79816692,91.21,91.14,16.4563]
[1645867740753,1.79816692,91.21,91.112,4.386]
[1645867740954,1.8489814,91.209,91.11,54.8614]
[1645867741655,3.98803881,91.208,91.111,44.32680902]
[1645867742255,3.98803881,91.208,91.112,0.25]
[1645867742452,3.98803881,91.208,91.12,16.4598]
[1645867743554,70.07803881,91.208,91.12,16.4598]
[1645867743756,70.07803881,91.208,91.069,2.82671589]
[1645867743757,109.7,91.199,91.1,16.4633]
[1645867743955,109.7,91.197,91.1,16.4633]
[1645867744157,109.7,91.195,91.1,16.4633]
[1645867744355,1.87126568,91.194,91.1,16.4633]
[1645867744556,4.388,91.193,91.1,16.4633]
[1645867744856,1.99596089,91.192,91.101,47.23017676]
[1645867745055,4.388,91.191,91.101,47.23017676]
[1645867745255,2.53318774,91.191,91.101,47.23017676]
[1645867745455,109.7,91.189,91.101,47.23017676]
[1645867745659,1.86826069,91.188,91.101,47.23017676]
[1645867745956,4.40144843,91.188,91.1,16.4633]
[1645867746157,2.53318774,91.187,91.1,16.4633]
[1645867746362,109.7,91.185,91.1,16.4633]
[1645867746556,1.63820239,91.184,91.1,16.4633]
[1645867747161,1.63820239,91.184,91.08,16.4671]
[1645867747361,2.53318774,91.183,91.08,16.4671]
[1645867747557,4.389,91.182,91.08,16.4671]
[1645867747758,109.7,91.181,91.08,16.4671]
[1645867747959,109.7,91.179,91.08,16.4671]
[1645867748262,6.10720156,91.18,91.081,47.03746907]
[1645867748263,137.69228472,91.178,91.081,47.03746907]
[1645867748457,1.5701141,91.177,91.081,47.03746907]
[1645867748757,4.389,91.176,91.08,16.4671]
[1645867749060,1.62961358,91.175,91.08,16.4671]
[1645867749357,4.389,91.174,91.08,16.4671]
[1645867749558,109.7,91.173,91.08,16.4671]
[1645867749756,109.7,91.171,91.081,48.17042086]
[1645867749956,16.4697,91.16,91.081,48.17042086]
[1645867750161,7.83934088,91.159,91.09,16.4667]
[1645867750357,6.14464716,91.159,91.09,16.4667]
[1645867752061,6.14464716,91.159,91.091,2.86292427]
[1645867752262,6.14464716,91.159,91.11,16.4624]
[1645867752462,6.14464716,91.159,91.111,43.78236317]
[1645867753265,22.807,91.174,91.111,43.78236317]
[1645867753463,22.807,91.174,91.12,16.4613]
[1645867754268,20.50698928,91.189,91.121,0.25]
[1645867754470,1.82227629,91.219,91.121,3.11292427]
[1645867754666,1.82227629,91.219,91.122,2.86292427]
[1645867754866,1.82227629,91.219,91.123,0.25]
[1645867755165,23.4331,91.223,91.123,0.25]
[1645867755367,54.13942872,91.222,91.124,2.86292427]
[1645867755566,52.54737894,91.222,91.125,45.94187148]
[1645867755964,52.54737894,91.222,91.126,2.86292427]
[1645867756165,52.54737894,91.222,91.127,0.25]
[1645867756568,52.54737894,91.222,91.15,16.4559]
[1645867756769,52.54737894,91.222,91.151,52.98258541]
[1645867761074,1.54966668,91.221,91.151,52.98258541]
[1645867761474,1.54966668,91.221,91.14,16.4578]
[1645867761475,16.4581,91.22,91.14,16.4578]
[1645867761674,111.19919862,91.219,91.077,2.66754892]
[1645867761874,1.77461098,91.218,91.109,2.86292427]
[1645867762073,18.85587102,91.218,91.121,2.86292427]
[1645867762274,1.72694762,91.217,91.121,2.86292427]
[1645867762475,18.80820766,91.217,91.122,51.95047503]
[1645867762678,1.62332397,91.216,91.122,51.95047503]
[1645867762881,18.70458401,91.216,91.122,51.95047503]
[1645867763076,1.54333129,91.215,91.14,16.4573]
[1645867763278,18.62459133,91.215,91.14,16.4573]
[1645867763580,1.40293222,91.214,91.14,16.4573]
[1645867763776,111.56018301,91.213,91.11,13.2]
[1645867763976,1.63558778,91.212,91.105,23.5599]
[1645867764177,109.7,91.211,91.105,23.5599]
[1645867764378,1.58347656,91.21,91.106,57.75300917]
[1645867764576,45.18142434,91.21,91.106,57.75300917]
[1645867764777,1.77851749,91.209,91.106,57.75300917]
[1645867764976,0.53361101,91.208,91.106,57.75300917]
[1645867765176,2.31319642,91.208,91.106,57.75300917]
[1645867765375,17.08126004,91.207,91.106,57.75300917]
[1645867765576,1.45630749,91.206,91.12,16.4599]
[1645867765777,1.45630749,91.206,91.121,43.66869802]
[1645867766077,17.08126004,91.205,91.121,43.66869802]
[1645867766476,1.41088355,91.204,91.121,43.66869802]
[1645867766879,17.08126004,91.203,91.121,43.66869802]
[1645867767078,1.5740189,91.202,91.121,43.66869802]
[1645867767480,17.86809908,91.2,91.121,43.66869802]
[1645867767680,17.08126004,91.201,91.13,16.4595]
[1645867767980,17.08126004,91.199,91.122,2.86292427]
[1645867768183,1.56890226,91.207,91.123,0.25]
[1645867768482,0.53361101,91.208,91.123,0.25]
[1645867768680,0.53361101,91.208,91.124,2.86292427]
[1645867768880,0.53361101,91.208,91.125,0.25]
[1645867769503,0.53361101,91.208,91.14,16.4576]
[1645867769701,0.53361101,91.208,91.141,56.22036091]
[1645867771705,0.53361101,91.208,91.15,16.4558]
[1645867773202,17.14128519,91.207,91.15,16.4558]
[1645867774003,1.39554388,91.206,91.124,2.86292427]
[1645867774203,1.39554388,91.206,91.014,0.25]
[1645867774204,1.39554388,91.206,91.13,16.458]
[1645867774404,109.7,91.204,91.13,16.458]
[1645867774806,18.91592527,91.203,91.13,16.458]
[1645867775004,1.50437418,91.202,91.13,16.458]
[1645867775204,18.64565937,91.202,91.13,16.458]
[1645867775404,1.4664581,91.201,91.13,16.458]
[1645867775604,18.60774329,91.201,91.13,16.458]
[1645867775805,1.56431177,91.2,91.13,16.458]
[1645867776003,18.70559696,91.2,91.13,16.458]
[1645867776204,1.82598489,91.199,91.11,16.4614]
[1645867776404,18.96727008,91.199,91.11,16.4614]
[1645867776603,1.41656702,91.198,91.11,16.4614]
[1645867776805,18.55785221,91.198,91.107,2.86292427]
[1645867777108,1.84330228,91.197,91.108,48.40322829]
[1645867777306,18.98458747,91.197,91.108,48.40322829]
[1645867777506,1.41441626,91.196,91.12,16.4612]
[1645867777705,23.5243,91.195,91.12,16.4612]
[1645867777905,25.3064423,91.194,91.12,16.4612]
[1645867778106,1.47608697,91.193,91.108,48.40322829]
[1645867778306,40.74997527,91.194,91.12,2.86292427]
[1645867778506,23.60869008,91.194,91.12,2.86292427]
[1645867778708,23.60869008,91.194,91.14,16.4577]
[1645867778909,23.60869008,91.194,91.141,46.41686807]
[1645867779508,23.5243,91.195,91.141,46.41686807]
[1645867779715,54.8577,91.25,91.141,46.41686807]
[1645867779716,1.52215084,91.234,91.15,16.4557]
[1645867779909,24.8797,91.228,91.15,16.4557]
[1645867780109,17.15446665,91.221,91.087,2.74075834]
[1645867780309,175.79,91.209,91.047,2.40913321]
[1645867780510,175.79,91.207,91.065,47.4663]
[1645867780709,109.7,91.205,91.062,16.2717]
[1645867780911,15.81,91.19,91.07,15.81]
[1645867781108,1.68486414,91.188,91.091,49.64473559]
[1645867781509,2.53318774,91.187,91.091,49.64473559]
[1645867781716,114.088,91.186,91.091,49.64473559]
[1645867781911,1.85574991,91.185,91.091,49.64473559]
[1645867782213,109.7,91.176,91.05,20.198]
[1645867782410,109.7,91.169,91.048,48.6269]
[1645867782613,1.78861306,91.168,91.05,15.81]
[1645867782809,114.09,91.167,91.05,32.6079]
[1645867783009,3.1463097,91.166,91.052,53.26559683]
[1645867783212,4.39,91.165,91.052,53.26559683]
[1645867783411,109.7,91.164,91.052,53.26559683]
[1645867783611,16.471,91.15,91.06,16.4707]
[1645867783812,14.27666212,91.149,91.06,16.4707]
[1645867784011,1.80679124,91.148,91.06,16.4707]
[1645867784211,1.80679124,91.148,91.061,0.25]
[1645867784212,47.6543,91.147,91.061,0.25]
[1645867784412,1.68042564,91.146,91.061,0.25]
[1645867784612,1.68042564,91.146,91.053,0.25]
[1645867785613,1.68042564,91.146,91.07,16.4698]
[1645867785814,1.68042564,91.146,91.071,49.77627579]
[1645867792524,1.84227795,91.145,91.071,49.77627579]
[1645867792920,1.74433575,91.138,91.071,49.77627579]
[1645867794122,16.4735,91.13,91.05,4.39]
[1645867794322,1.43653493,91.128,91.05,4.39]
[1645867794523,1.46046217,91.125,90.998,11.45724262]
[1645867794723,109.7,91.118,90.998,11.45724262]
[1645867794925,1.64373397,91.115,90.998,11.45724262]
[1645867795122,109.7,91.109,90.999,55.99082718]
[1645867795348,109.7,91.089,91.01,16.4809]
[1645867795523,124.14667806,91.088,91.01,16.4809]
[1645867795723,1.55764096,91.087,90.999,53.12790291]
[1645867796323,109.7,91.079,91.0,16.4828]
[1645867796526,1.40438047,91.078,91.0,16.4828]
[1645867797428,16.4847,91.07,90.999,53.12790291]
[1645867797628,114.77882563,91.069,90.986,113.0]
[1645867797827,1.53234749,91.068,90.986,113.0]
[1645867798026,1.53234749,91.068,90.98,16.4852]
[1645867798428,109.7,91.066,90.98,16.4852]
[1645867798626,1.62512953,91.065,90.981,44.11836893]
[1645867799528,109.7,91.059,90.981,44.11836893]
[1645867799729,1.66300488,91.058,90.981,44.11836893]
[1645867800628,14.51265704,91.049,90.981,44.11836893]
[1645867800828,111.21085776,91.048,90.981,44.11836893]
[1645867801030,109.7,91.046,90.93,54.9698]
[1645867801232,1.67459275,91.045,90.93,54.9698]
[1645867801434,1.67459275,91.045,90.934,0.25]
[1645867801637,109.7,91.044,90.934,0.25]
[1645867801835,109.7,91.039,90.934,0.25]
[1645867802033,1.41148858,91.038,90.934,56.0845485]
[1645867802628,109.7,91.036,90.934,56.0845485]
[1645867802860,109.7,91.019,90.934,56.0845485]
[1645867803030,124.03953556,91.018,90.934,56.0845485]
[1645867803229,1.69432841,91.017,90.935,0.25]
[1645867804231,109.7,91.009,90.934,56.0845485]
[1645867804435,1.73231266,91.008,90.934,56.0845485]
[1645867805234,1.73231266,91.008,90.875,113.0]
[1645867805235,66.09,90.999,90.875,113.0]
[1645867805436,111.27972841,90.989,90.875,113.0]
[1645867805733,66.09,90.982,90.848,77.0492]
[1645867805932,109.7,90.969,90.841,17.70518384]
[1645867806132,109.7,90.967,90.842,42.69093409]
[1645867806332,16.5104,90.94,90.842,42.69093409]
[1645867806533,14.43118214,90.939,90.842,42.69093409]
[1645867806735,4.4,90.938,90.842,42.69093409]
[1645867806933,5.92,91.031,90.842,42.69093409]
[1645867806934,15.81,90.98,90.85,15.81]
[1645867807133,1.6741584,90.978,90.85,15.81]
[1645867807334,16.5023,90.97,90.88,16.5037]
[1645867807538,1.81430702,90.969,90.88,16.5037]
[1645867807731,14.08297991,90.969,90.881,59.48749346]
[1645867807932,1.81673686,90.968,90.881,59.48749346]
[1645867808136,22.8569,90.967,90.881,59.48749346]
[1645867808332,1.36980269,90.966,90.882,0.25]
[1645867808534,16.5039,90.96,90.881,59.48749346]
[1645867808733,1.43779538,90.959,90.881,59.48749346]
[1645867809332,2.52804363,90.965,90.881,59.48749346]
[1645867809533,4.399,90.964,90.881,59.48749346]
[1645867809936,1.3906518,90.966,90.881,59.48749346]
[1645867810536,16.5066,90.95,90.881,59.48749346]
[1645867810737,5.70359838,90.949,90.881,59.48749346]
[1645867811738,1.53200984,90.965,90.881,59.48749346]
[1645867812744,1.62187916,90.963,90.881,59.48749346]
[1645867814540,1.62187916,90.963,90.89,16.5024]
[1645867815144,15.81,90.98,90.89,16.5024]
[1645867815145,2.54476103,90.992,90.89,16.5024]
[1645867815351,2.54476103,90.992,90.891,9.90982955]
[1645867815544,1.50890426,91.022,90.891,110.9934767]
[1645867815742,46.707,91.023,90.92,16.496]
[1645867815943,1.71053419,91.022,90.921,4.646]
[1645867816243,13.50911417,91.021,90.921,127.78121237]
[1645867816449,1.52264292,91.02,90.93,54.9687]
[1645867816651,1.52264292,91.02,90.931,4.646]
[1645867816849,1.52264292,91.02,90.931,7.50892427]
[1645867817045,1.52264292,91.02,90.932,2.86292427]
[1645867817243,1.52264292,91.02,90.933,0.25]
[1645867817446,46.707,91.023,90.95,16.4907]
[1645867817646,1.7602495,91.057,90.951,0.25]
[1645867817869,49.1787,91.056,90.951,127.41724609]
[1645867818068,1.56436877,91.079,90.953,109.7]
[1645867818270,4.394,91.096,90.954,2.9140042]
[1645867818469,13.02288388,91.095,90.955,165.1881127]
[1645867818670,1.81423825,91.094,90.962,2.85666259]
[1645867818869,1.81423825,91.094,90.963,4.644]
[1645867819271,1.53560916,91.094,90.991,43.33500719]
[1645867819571,1.56889852,91.093,90.992,4.643]
[1645867819772,1.56889852,91.093,90.992,7.50592427]
[1645867819971,1.56889852,91.093,90.993,2.86292427]
[1645867820170,1.56889852,91.093,90.994,0.25]
[1645867820373,109.7,91.089,91.0,16.4818]
[1645867820571,109.7,91.089,91.001,0.25]
[1645867820572,1.79087997,91.088,91.001,0.25]
[1645867820970,1.79087997,91.088,91.0,16.4818]
[1645867820971,175.79,91.087,90.991,43.33500719]
[1645867821170,109.7,91.085,90.991,43.33500719]
[1645867821475,4.57855907,91.078,90.991,43.33500719]
[1645867821673,1.81648103,91.076,90.991,43.33500719]
[1645867821871,4.393,91.075,90.991,43.33500719]
[1645867822274,109.7,91.074,90.991,43.33500719]
[1645867822473,6.93776103,91.075,90.991,43.33500719]
[1645867822474,109.7,91.072,90.991,43.33500719]
[1645867822673,1.61129963,91.071,90.991,43.33500719]
[1645867823275,1.71639791,91.069,90.98,16.4851]
[1645867823674,109.7,91.067,90.98,16.4851]
[1645867823873,6.93876103,91.068,90.98,16.4851]
[1645867824074,1.7404033,91.066,90.98,16.4851]
[1645867824275,1.7404033,91.066,90.981,57.15575582]
[1645867824474,1.7404033,91.066,90.981,56.90575582]
[1645867824875,1.7404033,91.066,90.99,16.4847]
[1645867825274,23.3952,91.067,90.99,16.4847]
[1645867826079,4.394,91.088,90.991,2.86292427]
[1645867826278,1.47400376,91.111,91.0,13.22]
[1645867826578,47.92890376,91.111,91.002,2.33224229]
[1645867826777,47.92890376,91.111,91.003,4.642]
[1645867826978,1.83991051,91.11,91.003,7.50492427]
[1645867827177,16.19094184,91.11,91.005,2.67919056]
[1645867827377,16.19094184,91.11,91.006,4.642]
[1645867827577,16.19094184,91.11,91.041,57.0001055]